Cogmind - Beta 10.2 @@@ ROGUE MODE // 2021.01.12 @ 12:14:00 Player: WeirdFoe Result: Self-destructed Performance ------------- Evolutions (3) 1500 Regions Visited (5) 1000 Robots Destroyed (37) 185 Value Destroyed (1218) 1218 Prototype IDs (2) 40 Alien Tech Used (0) 0 Bonus (436) 436 TOTAL SCORE: 4379 Bonus ------- Pacifist 200 High Alert Combat Kills 103 Follower Combat Kills 133 Cogmind --------- Core Integrity 663/700 Matter 230/300 Energy 325/325 System Corruption 0% Temperature Cool (0) Movement Treading (160) Location -7/Factory Parts ------- > --- POWER (2) -------- Improved Ion Engine Light Nuclear Core > --- PROPULSION (4) --- Light Treads Light Treads Light Treads Light Treads > --- UTILITY (4) ------ Small Storage Unit High-capacity Storage Unit Light Armor Plating Hacking Suite > --- WEAPON (3) ------- Improved Assault Rifle Improved Assault Rifle Rocket Launcher > --- INVENTORY (14) --- Ion Engine Ion Engine Light Ion Engine Signal Interpreter Cooled Particle Cannon Heavy Assault Rifle Improved Assault Rifle Peak State ------------ > --- POWER ------------ Improved Ion Engine Light Nuclear Core > --- PROPULSION ------- Light Treads Light Treads Light Treads Light Treads > --- UTILITY ---------- Small Storage Unit High-capacity Storage Unit Light Armor Plating Hacking Suite > --- WEAPON ----------- Cooled Particle Cannon Improved Assault Rifle Improved Assault Rifle > --- INVENTORY -------- Ion Engine Ion Engine Light Ion Engine Signal Interpreter Heavy Assault Rifle Improved Assault Rifle Rocket Launcher [Rating: 27] Favorites ----------- Power Light Ion Engine Engine Light Ion Engine Power Core Light Nuclear Core Propulsion Light Treads Treads Light Treads Wheel Compact Wheel Utility High-capacity Storage Unit Storage High-capacity Storage Unit Hackware Hacking Suite Protection Light Armor Plating Weapon Improved Assault Rifle Energy Gun Medium Laser Energy Cannon Cooled Particle Cannon Ballistic Gun Improved Assault Rifle Launcher Rocket Launcher Build | -11 -10 -9 -9 -8 -7 ------- Run | Scr Mat Mat Sto Mat Fac Slots Evolved 6 | . . 2 . 2 2 Power 1 | . . . . . 1 Propulsion 2 | . . 1 . 1 . Utility 2 | . . 1 . . 1 Weapon 1 | . . . . 1 . Parts Attached 46 | 6 1 3 15 16 5 Power 7 | 1 . 1 1 2 2 Engine 5 | 1 . 1 1 . 2 Core 2 | . . . . 2 . Reactor . | . . . . . . Propulsion 16 | 2 . . 5 9 . Treads 13 | . . . 5 8 . Leg . | . . . . . . Wheel 3 | 2 . . . 1 . Hover . | . . . . . . Flight . | . . . . . . Utility 6 | 1 1 1 1 1 1 Device . | . . . . . . Storage 3 | 1 1 . . . 1 Processor . | . . . . . . Hackware 1 | . . 1 . . . Protection 2 | . . . 1 1 . Artifact . | . . . . . . Weapon 17 | 2 . 1 8 4 2 Energy Gun 3 | 2 . 1 . . . Energy Cannon 1 | . . . . . 1 Ballistic Gun 8 | . . . 5 3 . Ballistic Cannon . | . . . . . . Launcher 5 | . . . 3 1 1 Special Weapon . | . . . . . . Impact Weapon . | . . . . . . Slashing Weapon . | . . . . . . Piercing Weapon . | . . . . . . Special Melee Weapon . | . . . . . . Unidentified Prototypes 2 | . . . 1 . 1 Parts Lost 3 | . . . 1 2 . Power 1 | . . . 1 . . Propulsion 1 | . . . . 1 . Utility . | . . . . . . Weapon 1 | . . . . 1 . Highest Loss Streak 1 | . . . 1 1 . Average Slot Usage (%) 89 | . 85 76 80 99 100 Engine 7 | . 14 11 10 2 7 Core 3 | . . . . 6 7 Treads 23 | . . . 23 32 30 Wheel 6 | . 28 22 3 3 . Storage 11 | . 14 11 11 9 15 Hackware 9 | . . 10 11 9 7 Protection 5 | . . . 4 9 7 Energy Gun 4 | . 28 22 1 . . Ballistic Gun 12 | . . . 9 19 18 Launcher 4 | . . . 5 7 . Naked Turns . | . . . . . . Heaviest Build 64 | 13 41 41 45 50 64 Greatest Support 80 | 32 32 32 60 80 80 Greatest Overweight (x) 1 | . 1 1 1 . . Average Overweight (x) . | . . 1 . . . Largest Inventory Capacity 14 | 6 14 12 12 12 14 Average Capacity 11 | 5 7 12 12 12 13 Most Carried 12 | 4 6 10 12 12 7 Average Carried 8 | 2 5 7 10 9 6 Final Capacity 14 | 6 12 12 12 12 14 Final Carried 11 | 4 6 9 11 8 7 Class Distribution -------------------- 39% | Mutant 25% | Scavenger-Tank 17% | Scavenger-Mutant 17% | Commander-Mutant Dominant Class ---------------- Mutant | -10/Materials Mutant | -9/Materials Commander-Mutant | -9/Storage Scavenger-Mutant | -8/Materials Scavenger-Tank | -7/Factory Resources | -11 -10 -9 -9 -8 -7 ----------- Run | Scr Mat Mat Sto Mat Fac Matter Collected 1040 | 100 . 57 364 489 30 Remotely . | . . . . . . Salvage Created 1248 | . . 57 373 768 50 Parts 70 | . . 3 22 38 7 Haulers Intercepted . | . . . . . . Recyclers Shooed . | . . . . . . Parts Field Recycled . | . . . . . . Retrieved Matter . | . . . . . . Parts Self-Destructed . | . . . . . . Prevented . | . . . . . . Kills | -11 -10 -9 -9 -8 -7 ------- Run | Scr Mat Mat Sto Mat Fac Combat Hostiles Destroyed 30 | . . 1 8 19 2 Guns 23 | . . . 7 15 1 AOE 6 | . . . 1 4 1 Classes Destroyed 10 | . . 2 5 1 2 Worker 1 | . . . 1 . . Builder 1 | . . . 1 . . Tunneler 1 | . . . . 1 . Recycler 2 | . . . 1 1 . Operator 2 | . . 1 . . 1 Swarmer 8 | . . . 3 5 . Grunt 14 | . . 1 3 10 . Sentry 6 | . . . 2 4 . Hunter 1 | . . . . . 1 Programmer 1 | . . . . . 1 Best Kill Streak 8 | . . 1 7 8 3 Combat Bots Only 6 | . . 1 5 6 2 Max Kills in Single Turn 3 | . . 1 3 3 1 Gunslinging . | . . . . . . Exploded 3 | . . . 1 3 1 Melee . | . . . . . . Uniques/NPCs Destroyed . | . . . . . . Combat | -11 -10 -9 -9 -8 -7 -------- Run | Scr Mat Mat Sto Mat Fac Damage Taken 1561 | . . 54 403 955 149 Core 203 | . . 10 48 108 37 Absorbed by Shields . | . . . . . . Core Remaining (%) 91 | 100 100 . 85 80 . Volleys Fired 73 | . . 10 13 45 5 Largest 3 | . . 2 2 3 2 Hottest 100 | . . 100 56 79 46 Shots Fired 150 | . . 19 26 99 6 Gun 141 | . . 19 25 95 2 Cannon . | . . . . . . Launcher 9 | . . . 1 4 4 Special . | . . . . . . Kinetic 122 | . . . 25 95 2 Thermal 18 | . . 18 . . . Explosive 9 | . . . 1 4 4 Electromagnetic 1 | . . 1 . . . Robot Hit Streak 23 | . . 9 15 23 20 Robot Miss Streak 3 | . . 2 3 2 1 Penetration Max . | . . . . . . Secondary Targets 2 | . . . . 2 . Max Gunslinging Chain 1 | . . . . 1 . Shots Hit Robots 121 | . . 12 20 85 4 Core Hits 61 | . . 4 12 37 8 Critical Hits 1 | . . . . 1 . Critical Kills . | . . . . . . Critical Parts Destroyed 1 | . . . . 1 . Melee Attacks . | . . . . . . Impact . | . . . . . . Slashing . | . . . . . . Piercing . | . . . . . . Sneak Attacks . | . . . . . . Combat Hostiles . | . . . . . . Follow-up Attacks . | . . . . . . Damage Inflicted 2620 | . . 178 380 1791 271 Guns 1691 | . . 178 312 1181 20 Cannons . | . . . . . . Explosions 928 | . . . 67 610 251 Melee . | . . . . . . Ramming 1 | . . . 1 . . Kinetic 1513 | . . . 312 1181 20 Thermal 165 | . . 165 . . . Explosive 928 | . . . 67 610 251 Electromagnetic 13 | . . 13 . . . Impact . | . . . . . . Slashing . | . . . . . . Piercing . | . . . . . . Highest Corruption 1 | . . . . 1 . Average Corruption 1 | . . . . 1 . Corruption Purged . | . . . . . . Overload Shots . | . . . . . . Overflow Damage 47 | . . . . 41 6 Projectiles . | . . . . . . Explosions 47 | . . . . 41 6 Melee . | . . . . . . Knockbacks . | . . . . . . Impact . | . . . . . . Kinetic . | . . . . . . Secondary . | . . . . . . Self-Inflicted Damage 124 | . . . 36 67 21 Shots 4 | . . . 1 2 1 Rammed 1 | . . . 1 . . Targets Rammed 1 | . . . 1 . . Kicked . | . . . . . . Crushed . | . . . . . . Highest Temperature 174 | . . 174 7 117 . Average Temperature 41 | . . 58 2 36 . Received Heat Transfer 549 | . . 30 87 432 . Siege Activations . | . . . . . . Robots Corrupted . | . . . . . . Combat Hostiles . | . . . . . . Parts Fried . | . . . . . . Impact Corruptions . | . . . . . . Robots Melted 1 | . . 1 . . . Combat Hostiles 1 | . . 1 . . . Parts Melted . | . . . . . . Heat Transferred 481 | . . 481 . . . Parts Sabotaged . | . . . . . . Parts Stolen . | . . . . . . Parts Stripped . | . . . . . . Power Chain Reactions . | . . . . . . Missiles Intercepted . | . . . . . . Alert | -11 -10 -9 -9 -8 -7 ------- Run | Scr Mat Mat Sto Mat Fac Peak Influence 689 | . 60 90 193 689 403 Initial 249 | . . 25 37 34 249 Average 195 | . 30 71 80 381 258 Maximum Alert Level 2 | . . . . 2 2 Low Security (%) 61 | 100 100 100 100 30 . Level 1 20 | . . . . 12 98 Level 2 17 | . . . . 57 1 Level 3 . | . . . . . . Level 4 . | . . . . . . Level 5 . | . . . . . . High Security . | . . . . . . Max Security . | . . . . . . Squads Dispatched 15 | . . 1 4 7 3 Investigation 4 | . . . 1 3 . Extermination 1 | . . . . . 1 Reinforcement 4 | . . 1 . 1 2 Assault . | . . . . . . Garrison 6 | . . . 3 3 . Intercept . | . . . . . . Construction Impeded 1 | . . . . . 1 Haulers Reinforced . | . . . . . . Stealth | -11 -10 -9 -9 -8 -7 --------- Run | Scr Mat Mat Sto Mat Fac Distress Signals 4 | . . . 1 3 . Communications Jammed . | . . . . . . Distress Signals . | . . . . . . Times Spotted 51 | . 6 5 11 25 4 Peak Tracking Total 8 | . 4 1 5 8 2 Tactical Retreats 2 | . 1 . . 1 . Traps | -11 -10 -9 -9 -8 -7 ------- Run | Scr Mat Mat Sto Mat Fac Traps Triggered 3 | . . . 2 1 . Indirectly . | . . . . . . Trap Hack Attempts . | . . . . . . Triggered . | . . . . . . Disarmed . | . . . . . . Reprogrammed . | . . . . . . Reused . | . . . . . . Traps Extracted . | . . . . . . Installed . | . . . . . . Triggered . | . . . . . . Machines | -11 -10 -9 -9 -8 -7 ---------- Run | Scr Mat Mat Sto Mat Fac Machines Disabled 9 | . . . . 5 4 Max in Single Turn 3 | . . . . 2 3 Machines Sabotaged . | . . . . . . Garrisons Compromised . | . . . . . . Overloaded Fab Kills . | . . . . . . Fab Network Shutdowns . | . . . . . . Hacking | -11 -10 -9 -9 -8 -7 --------- Run | Scr Mat Mat Sto Mat Fac Machines Accessed 9 | . . 1 5 2 1 Terminals 8 | . . 1 5 2 . Fabricators . | . . . . . . Repair Stations . | . . . . . . Recycling Units . | . . . . . . Scanalyzers 1 | . . . . . 1 Garrison Access . | . . . . . . Total Hacks 17 | . . 2 7 6 2 Successful 10 | . . 1 4 3 2 Failed 7 | . . 1 3 3 . Catastrophic 1 | . . . . 1 . Database Lockouts . | . . . . . . Manual 10 | . . 2 4 4 . Terminals 15 | . . 2 7 6 . Fabricators . | . . . . . . Repair Stations . | . . . . . . Recycling Units . | . . . . . . Scanalyzers 2 | . . . . . 2 Garrison Access . | . . . . . . Terminal Hacks 8 | . . 1 4 3 . Record 2 | . . . . 2 . Open Door 2 | . . . 2 . . Branch Access Points 2 | . . . 1 1 . Unreport Threat 1 | . . . 1 . . Zone Layout 1 | . . 1 . . . Fabricator Hacks . | . . . . . . Repair Station Hacks . | . . . . . . Recycling Unit Hacks . | . . . . . . Scanalyzer 2 | . . . . . 2 Insert Component 1 | . . . . . 1 Analyze 1 | . . . . . 1 Garrison Access Hacks . | . . . . . . Unauthorized Hacks . | . . . . . . Terminals . | . . . . . . Fabricators . | . . . . . . Repair Stations . | . . . . . . Recycling Units . | . . . . . . Scanalyzers . | . . . . . . Garrison Access . | . . . . . . Data Cores Recovered . | . . . . . . Used . | . . . . . . Hacking Detections 5 | . . 1 1 2 1 Full Trace Events 2 | . . . . 2 . Feedback Events 1 | . . . . 1 . Corruption 1 | . . . . 1 . Feedback Blocked . | . . . . . . Robot Schematics Acquired . | . . . . . . Robots Built . | . . . . . . Matter . | . . . . . . Time . | . . . . . . Total Robot Build Rating . | . . . . . . Part Schematics Acquired 1 | . . . . . 1 Parts Built . | . . . . . . Matter . | . . . . . . Time . | . . . . . . Total Part Build Rating . | . . . . . . Parts Repaired . | . . . . . . Time . | . . . . . . Parts Recycled . | . . . . . . Recycled Matter . | . . . . . . Retrieved Matter . | . . . . . . Retrieved Components . | . . . . . . Parts Scanalyzed 1 | . . . . . 1 Part Schematics Acquired 1 | . . . . . 1 Parts Damaged . | . . . . . . Bothacking | -11 -10 -9 -9 -8 -7 ------------ Run | Scr Mat Mat Sto Mat Fac Used RIF Installer . | . . . . . . Robots Hacked . | . . . . . . Non-combat . | . . . . . . Combat . | . . . . . . Robot Hacks Applied . | . . . . . . Relay Couplers Released . | . . . . . . Robots Rewired . | . . . . . . Allies Hacked . | . . . . . . Hacks Repelled . | . . . . . . Allies | -11 -10 -9 -9 -8 -7 -------- Run | Scr Mat Mat Sto Mat Fac Total Allies 10 | . . . 10 . . Largest Group 10 | . . . 10 . . Highest-Rated Group 88 | . . . 88 . . Highest-Rated Ally 16 | . . . 16 . . Total Orders . | . . . . . . Ally Attacks 37 | . . . 37 . . Total Damage 373 | . . . 373 . . Kills 5 | . . . 5 . . Allies Corrupted . | . . . . . . Allies Melted . | . . . . . . Intel | -11 -10 -9 -9 -8 -7 ------- Run | Scr Mat Mat Sto Mat Fac Robot Analysis Total . | . . . . . . Derelict Logs Recovered . | . . . . . . Drone Launches . | . . . . . . Drone Recoveries . | . . . . . . Exploration | -11 -10 -9 -9 -8 -7 ------------- Run | Scr Mat Mat Sto Mat Fac Turns Passed 1686 | 52 86 181 570 505 292 Spaces Moved 857 | 41 82 123 245 195 171 Core 3 | 3 . . . . . Treads 572 | . . . 206 195 171 Legs . | . . . . . . Wheels 282 | 38 82 123 39 . . Hover . | . . . . . . Flight . | . . . . . . Fastest Speed 50 | 50 100 110 110 160 160 Average Speed 142 | 96 101 110 152 160 160 Slowest Speed 180 | 100 110 110 180 160 160 Overloaded Moves . | . . . . . . Propulsion Burnouts . | . . . . . . Robots Hopped . | . . . . . . Cave-ins Triggered . | . . . . . . Exploration Rate (%) 17 | 3 20 8 46 23 7 Regions Visited 5 Branch Regions 1 Pre-discovered Areas 1 | . . . 1 . . Known Exits Taken . | . . . . . . Unknown Exits Taken 5 | 1 1 1 1 1 . Scrap Searched . | . . . . . . Spaces Dug . | . . . . . . Terrain Destroyed 92 | . . . 10 76 6 Melee . | . . . . . . Projectile . | . . . . . . AOE 92 | . . . 10 76 6 Terrain Rammed . | . . . . . . Walls Destroyed . | . . . . . . Machines Disabled . | . . . . . . Actions | -11 -10 -9 -9 -8 -7 --------- Run | Scr Mat Mat Sto Mat Fac Total 1177 | 50 84 150 415 296 182 Wait 167 | . . 9 127 31 . Move 852 | 40 81 122 244 194 171 Hop . | . . . . . . Pick Up 14 | 4 1 3 4 2 . Fast Attach 17 | 6 1 2 5 2 1 Attach 15 | . . 1 6 6 2 Detach 10 | . 1 2 6 . 1 Swap 14 | . . . 4 8 2 Drop 14 | . . 1 5 8 . Fire 73 | . . 10 13 45 5 Melee . | . . . . . . Ram . | . . . . . . Kick . | . . . . . . Crush 1 | . . . 1 . . Escape Stasis . | . . . . . . Rewire . | . . . . . . Trap . | . . . . . . Miscellaneous . | . . . . . . Route ------- -11/Scrapyard -10/Materials -9/Materials -9/Storage (discovered 2 exits: *Mat / Rec) -8/Materials -7/Factory History --------- Turn | Location | Event 34 | -11/Scrapyard | Discovered new exit (range 14) 53 | -11/Scrapyard | Entered Materials 136 | -10/Materials | Discovered new exit (range 4) 139 | -10/Materials | Entered another Materials area 139 | -9/Materials | Evolved 2 slots: Propulsion x1, Utility x1 222 | -9/Materials | Discovered new exit (range 3) 307 | -9/Materials | Build established: Mutant 320 | -9/Materials | Entered Storage 345 | -9/Storage | Assisted by bots powering up and referring to "LRC-V3" 661 | -9/Storage | Garrison activated, responded to threat 743 | -9/Storage | Identified exit to Recycling 870 | -9/Storage | Learned location of Armory (-4) 882 | -9/Storage | Discovered new exit (range 6) 890 | -9/Storage | Entered Materials 890 | -8/Materials | Evolved 2 slots: Propulsion x1, Weapon x1 999 | -8/Materials | Garrison activated, responded to threat 1390 | -8/Materials | Discovered new exit (range 4) 1395 | -8/Materials | Entered Factory 1395 | -7/Factory | Evolved 2 slots: Power x1, Utility x1 1612 | -7/Factory | Build established: Scavenger-Tank 1687 | -7/Factory | Self-destructed Last Messages --------------- 01672_ K-01 Serf cleans the Matter Pump. 01674_ C-30 ARC bursts open, deploying its payload. 01674_ H-55 Commando unfolds itself. 01675_ Slug penetrates Terminal. 01675_ Terminal disabled. 01676_ K-01 Serf collects debris. 01676_ Destroyed Wheel. 01676_ Matter Pump disabled. 01678_ U-05 Engineer lays Concrete. 01678_ Penetrated by Slug. 01678_ Pressure Siphon disabled. 01678_ O-16 Technician destroyed. 01680_ U-05 Engineer lays Concrete. 01680_ H-55 Commando destroyed. 01681_ ALERT: Construction progress impeded, dispatching reinforcements to local area. 01682_ Matter Pump disabled. 01682_ Pressure Siphon disabled. 01684_ P-60 Hacker destroyed. 01687_ U-05 Engineer lays Concrete. Map ----- +----------------------------------------------------+ | ?????????????????????????????????????????????????? | | ?????????????????????????????????????????????????? | | ?????????????????????????????????????????????????? | | ?????????????????????????????????????????????????? | | ?????????????????????????????????????????????????? | | ?????????????????????????????????????????????????? | | ?????????????????????????????????????????????????? | | ????????????????????????? ?????????????????????? | | ????????????????????????? ?????????????????????? | | ?????????????????????"???% ?????????????????????? | | ????????????????????"" """ ?????????????????????? | | ????????????????????"" """ +????????????????????? | | ????????????????????? #????????????????????? | | ?????????????????????" == #????????????????????? | | ?????????????????????" == ########?????????????? | | ?????????????????????" =! #?????????????? | | ????????????? ?? ?? #?????????????? | | ????????????? # ?"" """ #?????????????? | | ????????????? """ " """ #???####??????? | | ????????????"?! " "" """ #?? ! !?????? | | ????????????? #% * "" #?? ?????? | | ???????????#+## % "" !%! """ #?""""""""????? | | ??????????? = = """ =] #? ????? | | ?????????? "" """ # """"""""" #? | | ?????????? """ # #? | | ?????????? @ """ + "" ?? | | ?????????? u """ # "" ?? | | ?????????? u # # Y" ?? | | ??????????? ??#### %"" #? ""??? | | ?????????????? ???????# """ #? ""??? | | ??????????????????????# """ #?? ! ??? | | ??????????????????????# """ #??##########?? | | ??????????????????????# #?????????????? | | ??????????????????????# #?????????????? | | ?????????????????????######### #?????????????? | | ????????????????????? # #?????????????? | | ????????????????????#"" """" # ##############? | | ????????????????????#"" """" # # #? | | ????????????????????#"" """" # # " " " #? | | ????????????????????#"Y """" + # " " " #? | | ????????????????????#"" """" # # " " " /% #? | | ????????????????????#"" """" # # " " " /! #? | | ????????????????????#"" # # " " " #? | | ????????????????????# # # " " " #? | | ????????????????????########## # " " " #? | | ?????????????????????????????# # " " " #? | | ?????????????????????????????# + " " " #? | | ?????????????????????????????# # #? | | ?????????????????#???????????# # #? | | ????????###+#+#### ########### ##############? | +----------------------------------------------------+ Best States ------------- Heat Dissipation 34 Energy Generation 21 Energy Capacity 325 Matter Stores 300 Matter Capacity 300 Sight Range 16 Terrain Scan Density 10 Armor Coverage 150 Evasion (%) 40 Recoil Reduction 4 Offensive Hacking 10 Item Schematics ----------------- Imp. Assault Rifle | -7/Factory | Scanalyzed Robot Schematics ------------------ None Fabricated ------------ Nothing Alien Tech Used ----------------- None Achievements -------------- None Challenges ------------ None Game ------ Seed SmartbombReflectiveCloak Manual? 0 Play Time 00:24:26 Cumulative 22.9 hours Start 2021.01.12 @ 11:45:43 End 2021.01.12 @ 12:14:00 Sessions 3 Manual Loads 0 Difficulty Rogue Special Mode None Game No. 33 Rogue 33 Adventurer 0 Explorer 0 Win Type - Total 0 Types 0/0/0/0/0/0/0/0/0 Lore% 21 Gallery% 35 Achievement% 23 Wizard Run 0 Options --------- ASCII 1 Keyboard 0 Movement Numpad Keybinds 0 Fullscreen 2 Font 18/Terminus Map View 76x50 Tactical HUD 1 Map Filters NONE Filters NONE Steam 0 RUN: 642db665-f6b6-4895-8b9e-6e6be7d63ee5